[Event "Titled Tuesday Blitz April 18 Early 2023"]
[White "Blokhin, Sofia"]
[Black "Vlassov, Nikolai"]
[WhiteFideId "4508190"]
[BlackFideId "4103360"]
[WhiteElo "1994"]
[BlackElo "2324"]
[Result "1-0"]
[Round "01"]
[TimeControl "180+2"]
[Date "2023.04.18"]
[WhiteClock "0:00:15"]
[BlackClock "0:00:01"]

1. d4 {[%clk 0:02:58]}  Nf6 {[%clk 0:02:59]} 2. c4 {[%clk 0:02:54]}  Nc6 {[%clk 0:02:59]} 3. Nc3 {[%clk 0:02:51]}  e5 {[%clk 0:02:58]} 4. d5 {[%clk 0:02:48]}  Ne7 {[%clk 0:02:58]} 5. e4 {[%clk 0:02:47]}  Ng6 {[%clk 0:02:57]} 6. f3 {[%clk 0:02:44]}  Bc5 {[%clk 0:02:56]} 7. Qd3 {[%clk 0:02:33]}  O-O {[%clk 0:02:38]} 8. Bg5 {[%clk 0:02:27]}  h6 {[%clk 0:02:12]} 9. Be3 {[%clk 0:02:24]}  Qe7 {[%clk 0:02:11]} 10. g3 {[%clk 0:02:15]}  c6 {[%clk 0:01:49]} 11. O-O-O {[%clk 0:02:10]}  cxd5 {[%clk 0:01:48]} 12. cxd5 {[%clk 0:02:03]}  Bxe3+ {[%clk 0:01:43]} 13. Qxe3 {[%clk 0:02:02]}  d6 {[%clk 0:01:43]} 14. Kb1 {[%clk 0:02:00]}  Nd7 {[%clk 0:01:36]} 15. h4 {[%clk 0:01:54]}  Rd8 {[%clk 0:01:13]} 16. h5 {[%clk 0:01:53]}  Ngf8 {[%clk 0:01:12]} 17. Nh3 {[%clk 0:01:51]}  Nc5 {[%clk 0:01:10]} 18. g4 {[%clk 0:01:48]}  f6 {[%clk 0:01:03]} 19. Ng1 {[%clk 0:01:37]}  Bd7 {[%clk 0:00:59]} 20. Nge2 {[%clk 0:01:36]}  b5 {[%clk 0:00:54]} 21. Ng3 {[%clk 0:01:31]}  b4 {[%clk 0:00:54]} 22. Nce2 {[%clk 0:01:30]}  a5 {[%clk 0:00:32]} 23. Nf5 {[%clk 0:01:28]}  Bxf5 {[%clk 0:00:33]} 24. exf5 {[%clk 0:01:09]}  Qb7 {[%clk 0:00:24]} 25. f4 {[%clk 0:01:01]}  Re8 {[%clk 0:00:19]} 26. Bg2 {[%clk 0:00:56]}  Nfd7 {[%clk 0:00:17]} 27. Qg3 {[%clk 0:00:44]}  Qb5 {[%clk 0:00:14]} 28. Rhe1 {[%clk 0:00:39]}  Nd3 {[%clk 0:00:14]} 29. Qxd3 {[%clk 0:00:36]}  Qb6 {[%clk 0:00:13]} 30. g5 {[%clk 0:00:31]}  e4 {[%clk 0:00:11]} 31. Qd4 {[%clk 0:00:27]}  Nc5 {[%clk 0:00:11]} 32. gxf6 {[%clk 0:00:23]}  Ra7 {[%clk 0:00:10]} 33. fxg7 {[%clk 0:00:19]}  Rxg7 {[%clk 0:00:10]} 34. Rg1 {[%clk 0:00:18]}  Qb5 {[%clk 0:00:08]} 35. Bh3 {[%clk 0:00:15]}  Re7 {[%clk 0:00:01]} 36. f6 {[%clk 0:00:15]} 1-0


[Site "https://www.chess.com"]

[Event "Titled Tuesday Blitz April 18 Early 2023"]
[White "Bayramov, Zaur"]
[Black "Nugumanov, Bakhtiyar"]
[WhiteFideId "13405080"]
[BlackFideId "13701797"]
[WhiteElo "2195"]
[BlackElo "2209"]
[Result "0-1"]
[Round "01"]
[TimeControl "180+2"]
[Date "2023.04.18"]
[WhiteClock "0:01:08"]
[BlackClock "0:00:16"]

1. c4 {[%clk 0:02:59]}  b6 {[%clk 0:02:59]} 2. Nc3 {[%clk 0:02:59]}  Bb7 {[%clk 0:02:58]} 3. Nf3 {[%clk 0:02:59]}  c5 {[%clk 0:02:25]} 4. g3 {[%clk 0:02:59]}  g6 {[%clk 0:02:24]} 5. Bg2 {[%clk 0:02:59]}  Bg7 {[%clk 0:02:24]} 6. d3 {[%clk 0:02:59]}  Nc6 {[%clk 0:02:10]} 7. a3 {[%clk 0:02:58]}  e6 {[%clk 0:02:10]} 8. O-O {[%clk 0:02:58]}  Nge7 {[%clk 0:02:10]} 9. Rb1 {[%clk 0:02:54]}  O-O {[%clk 0:02:08]} 10. Bd2 {[%clk 0:02:48]}  a5 {[%clk 0:01:59]} 11. Qc1 {[%clk 0:02:47]}  Re8 {[%clk 0:01:53]} 12. Nb5 {[%clk 0:02:35]}  d5 {[%clk 0:01:49]} 13. Bf4 {[%clk 0:02:35]}  e5 {[%clk 0:01:40]} 14. Bh6 {[%clk 0:02:34]}  Bh8 {[%clk 0:01:26]} 15. cxd5 {[%clk 0:02:33]}  Nxd5 {[%clk 0:01:27]} 16. Nc3 {[%clk 0:02:29]}  Nd4 {[%clk 0:01:22]} 17. Nxd4 {[%clk 0:02:26]}  exd4 {[%clk 0:01:21]} 18. Nxd5 {[%clk 0:02:26]}  Bxd5 {[%clk 0:01:22]} 19. Bxd5 {[%clk 0:02:26]}  Qxd5 {[%clk 0:01:23]} 20. Re1 {[%clk 0:02:26]}  Qh5 {[%clk 0:01:20]} 21. Qg5 {[%clk 0:02:16]}  Qxg5 {[%clk 0:01:04]} 22. Bxg5 {[%clk 0:02:15]}  Re6 {[%clk 0:01:05]} 23. a4 {[%clk 0:02:14]}  Rae8 {[%clk 0:01:05]} 24. Kf1 {[%clk 0:02:14]}  Bf6 {[%clk 0:00:47]} 25. Bd2 {[%clk 0:02:13]}  Kg7 {[%clk 0:00:40]} 26. b3 {[%clk 0:02:14]}  Be5 {[%clk 0:00:38]} 27. e4 {[%clk 0:02:09]}  dxe3 {[%clk 0:00:35]} 28. Rxe3 {[%clk 0:02:10]}  Bd4 {[%clk 0:00:34]} 29. Rxe6 {[%clk 0:02:10]}  Rxe6 {[%clk 0:00:35]} 30. Re1 {[%clk 0:02:09]}  Rxe1+ {[%clk 0:00:23]} 31. Kxe1 {[%clk 0:02:10]}  Kf6 {[%clk 0:00:24]} 32. Ke2 {[%clk 0:02:08]}  Kf5 {[%clk 0:00:24]} 33. f4 {[%clk 0:02:07]}  Kg4 {[%clk 0:00:20]} 34. Bc1 {[%clk 0:01:46]}  Kh3 {[%clk 0:00:21]} 35. Kf3 {[%clk 0:01:46]}  f5 {[%clk 0:00:19]} 36. Bd2 {[%clk 0:01:29]}  Kxh2 {[%clk 0:00:19]} 37. g4 {[%clk 0:01:29]}  Kh3 {[%clk 0:00:18]} 38. g5 {[%clk 0:01:29]}  Kh2 {[%clk 0:00:16]} 39. Bc1 {[%clk 0:01:23]}  Kg1 {[%clk 0:00:17]} 40. Ke2 {[%clk 0:01:17]}  Kg2 {[%clk 0:00:17]} 41. Bd2 {[%clk 0:01:18]}  Kg3 {[%clk 0:00:17]} 42. Bc1 {[%clk 0:01:18]}  Kg4 {[%clk 0:00:18]} 43. Bd2 {[%clk 0:01:18]}  Bg1 {[%clk 0:00:18]} 44. Be3 {[%clk 0:01:08]}  Bxe3 {[%clk 0:00:15]} 45. Kxe3 {[%clk 0:01:08]}  Kg3 {[%clk 0:00:16]} 0-1


[Site "https://www.chess.com"]

[Event "Titled Tuesday Blitz April 18 Early 2023"]
[White "Inepton_Fermion"]
[Black "Yelisieiev, Yevhenii"]
[BlackFideId "14139642"]
[WhiteElo "2250"]
[BlackElo "2425"]
[Result "0-1"]
[Round "01"]
[TimeControl "180+2"]
[Date "2023.04.18"]
[WhiteClock "0:00:04"]
[BlackClock "0:00:15"]

1. e4 {[%clk 0:02:59]}  d6 {[%clk 0:02:59]} 2. d4 {[%clk 0:02:58]}  Nf6 {[%clk 0:02:58]} 3. Nc3 {[%clk 0:02:59]}  e5 {[%clk 0:02:57]} 4. dxe5 {[%clk 0:02:56]}  dxe5 {[%clk 0:02:57]} 5. Qxd8+ {[%clk 0:02:57]}  Kxd8 {[%clk 0:02:57]} 6. Bc4 {[%clk 0:02:58]}  Ke8 {[%clk 0:02:56]} 7. f3 {[%clk 0:02:48]}  c6 {[%clk 0:02:55]} 8. Be3 {[%clk 0:02:46]}  b5 {[%clk 0:02:39]} 9. Bb3 {[%clk 0:02:44]}  a5 {[%clk 0:02:31]} 10. a4 {[%clk 0:02:44]}  b4 {[%clk 0:02:30]} 11. Nb1 {[%clk 0:02:44]}  Nbd7 {[%clk 0:02:29]} 12. Nd2 {[%clk 0:02:41]}  Bc5 {[%clk 0:02:29]} 13. Bxc5 {[%clk 0:02:34]}  Nxc5 {[%clk 0:02:29]} 14. Bc4 {[%clk 0:02:34]}  Ke7 {[%clk 0:02:22]} 15. b3 {[%clk 0:02:33]}  Rd8 {[%clk 0:02:16]} 16. O-O-O {[%clk 0:02:33]}  Nfd7 {[%clk 0:02:04]} 17. h4 {[%clk 0:02:03]}  Nb6 {[%clk 0:01:58]} 18. Be2 {[%clk 0:02:03]}  Ne6 {[%clk 0:01:52]} 19. Nc4 {[%clk 0:02:00]}  Rxd1+ {[%clk 0:01:51]} 20. Kxd1 {[%clk 0:02:01]}  Nxc4 {[%clk 0:01:41]} 21. Bxc4 {[%clk 0:02:02]}  Nd4 {[%clk 0:01:32]} 22. Ne2 {[%clk 0:02:02]}  Be6 {[%clk 0:01:05]} 23. Nxd4 {[%clk 0:01:55]}  Rd8 {[%clk 0:00:51]} 24. Bxe6 {[%clk 0:01:40]}  Rxd4+ {[%clk 0:00:49]} 25. Ke2 {[%clk 0:01:40]}  Kxe6 {[%clk 0:00:49]} 26. Rd1 {[%clk 0:01:31]}  Rxd1 {[%clk 0:00:40]} 27. Kxd1 {[%clk 0:01:31]}  c5 {[%clk 0:00:29]} 28. Ke2 {[%clk 0:01:30]}  c4 {[%clk 0:00:29]} 29. Kd2 {[%clk 0:00:28]}  Kd6 {[%clk 0:00:20]} 30. h5 {[%clk 0:00:11]}  Kc5 {[%clk 0:00:20]} 31. Ke3 {[%clk 0:00:11]}  h6 {[%clk 0:00:19]} 32. g3 {[%clk 0:00:11]}  g6 {[%clk 0:00:19]} 33. g4 {[%clk 0:00:06]}  g5 {[%clk 0:00:18]} 34. Ke2 {[%clk 0:00:05]}  Kd4 {[%clk 0:00:17]} 35. Kd2 {[%clk 0:00:05]}  f6 {[%clk 0:00:15]} 36. c3+ {[%clk 0:00:04]}  bxc3+ {[%clk 0:00:15]} 37. Kc2 {[%clk 0:00:04]}  cxb3+ {[%clk 0:00:15]} 0-1


[Site "https://www.chess.com"]

[Event "Titled Tuesday Blitz April 18 Early 2023"]
[White "Sreyas Payyappat"]
[Black "Kohler, Aran"]
[WhiteFideId "46674969"]
[BlackFideId "1002856"]
[WhiteElo "2083"]
[BlackElo "2250"]
[Result "1-0"]
[Round "01"]
[TimeControl "180+2"]
[Date "2023.04.18"]
[WhiteClock "0:01:37"]
[BlackClock "0:01:27"]

1. e4 {[%clk 0:02:57]}  c6 {[%clk 0:02:56]} 2. d4 {[%clk 0:02:56]}  d5 {[%clk 0:02:56]} 3. Nc3 {[%clk 0:02:57]}  dxe4 {[%clk 0:02:56]} 4. Nxe4 {[%clk 0:02:54]}  Bf5 {[%clk 0:02:56]} 5. Ng3 {[%clk 0:02:52]}  Bg6 {[%clk 0:02:57]} 6. Nf3 {[%clk 0:02:53]}  Nd7 {[%clk 0:02:56]} 7. h4 {[%clk 0:02:50]}  h6 {[%clk 0:02:55]} 8. Bd3 {[%clk 0:02:50]}  Bxd3 {[%clk 0:02:55]} 9. Qxd3 {[%clk 0:02:49]}  e6 {[%clk 0:02:55]} 10. Bd2 {[%clk 0:02:48]}  Ngf6 {[%clk 0:02:54]} 11. O-O-O {[%clk 0:02:47]}  Be7 {[%clk 0:02:50]} 12. Ne4 {[%clk 0:02:44]}  a5 {[%clk 0:02:49]} 13. Rde1 {[%clk 0:02:36]}  Nxe4 {[%clk 0:02:47]} 14. Qxe4 {[%clk 0:02:34]}  Nf6 {[%clk 0:02:47]} 15. Qe2 {[%clk 0:02:33]}  a4 {[%clk 0:02:46]} 16. c4 {[%clk 0:02:20]}  a3 {[%clk 0:02:46]} 17. b3 {[%clk 0:02:19]}  O-O {[%clk 0:02:40]} 18. Bc3 {[%clk 0:02:13]}  b5 {[%clk 0:02:37]} 19. Ne5 {[%clk 0:02:11]}  Qc7 {[%clk 0:02:12]} 20. g4 {[%clk 0:02:08]}  Nd7 {[%clk 0:01:58]} 21. g5 {[%clk 0:02:05]}  Nxe5 {[%clk 0:01:48]} 22. dxe5 {[%clk 0:02:02]}  hxg5 {[%clk 0:01:41]} 23. hxg5 {[%clk 0:02:01]}  Bxg5+ {[%clk 0:01:42]} 24. Kb1 {[%clk 0:01:59]}  bxc4 {[%clk 0:01:36]} 25. Qh5 {[%clk 0:01:57]}  Bh6 {[%clk 0:01:37]} 26. Reg1 {[%clk 0:01:40]}  Kh7 {[%clk 0:01:27]} 27. Rxg7+ {[%clk 0:01:37]} 1-0


[Site "https://www.chess.com"]

[Event "Titled Tuesday Blitz April 18 Early 2023"]
[White "Putri, Regita Desyari"]
[Black "Lenaerts, Lennert"]
[WhiteFideId "7109083"]
[BlackFideId "211435"]
[WhiteElo "1930"]
[BlackElo "2334"]
[Result "0-1"]
[Round "01"]
[TimeControl "180+2"]
[Date "2023.04.18"]
[WhiteClock "0:00:04"]
[BlackClock "0:01:38"]

1. d4 {[%clk 0:02:52]}  Nf6 {[%clk 0:02:58]} 2. c4 {[%clk 0:02:52]}  c5 {[%clk 0:02:58]} 3. Nf3 {[%clk 0:02:46]}  cxd4 {[%clk 0:02:57]} 4. Nxd4 {[%clk 0:02:46]}  e6 {[%clk 0:02:58]} 5. g3 {[%clk 0:02:33]}  Nc6 {[%clk 0:02:53]} 6. Bg2 {[%clk 0:02:33]}  Bb4+ {[%clk 0:02:52]} 7. Nc3 {[%clk 0:02:31]}  Qa5 {[%clk 0:02:50]} 8. Nb5 {[%clk 0:02:27]}  O-O {[%clk 0:02:44]} 9. O-O {[%clk 0:01:37]}  a6 {[%clk 0:02:41]} 10. Nd6 {[%clk 0:01:37]}  Qc7 {[%clk 0:02:37]} 11. Nde4 {[%clk 0:01:34]}  Nxe4 {[%clk 0:02:33]} 12. Nxe4 {[%clk 0:01:32]}  d5 {[%clk 0:02:34]} 13. Bf4 {[%clk 0:01:14]}  Qa5 {[%clk 0:02:12]} 14. cxd5 {[%clk 0:01:04]}  exd5 {[%clk 0:02:12]} 15. Nd6 {[%clk 0:01:04]}  g5 {[%clk 0:01:58]} 16. Bxg5 {[%clk 0:00:35]}  Bxd6 {[%clk 0:01:57]} 17. Bxd5 {[%clk 0:00:35]}  Be5 {[%clk 0:01:57]} 18. Rb1 {[%clk 0:00:30]}  Be6 {[%clk 0:01:56]} 19. Bxe6 {[%clk 0:00:26]}  fxe6 {[%clk 0:01:57]} 20. Qb3 {[%clk 0:00:25]}  Qd5 {[%clk 0:01:56]} 21. Qxd5 {[%clk 0:00:20]}  exd5 {[%clk 0:01:57]} 22. Rfd1 {[%clk 0:00:18]}  d4 {[%clk 0:01:56]} 23. a3 {[%clk 0:00:17]}  Rac8 {[%clk 0:01:55]} 24. b4 {[%clk 0:00:14]}  Bg7 {[%clk 0:01:55]} 25. Bf4 {[%clk 0:00:11]}  Rf5 {[%clk 0:01:53]} 26. Rbc1 {[%clk 0:00:11]}  Re8 {[%clk 0:01:52]} 27. e3 {[%clk 0:00:10]}  dxe3 {[%clk 0:01:53]} 28. fxe3 {[%clk 0:00:11]}  Rf7 {[%clk 0:01:50]} 29. Rc2 {[%clk 0:00:10]}  Be5 {[%clk 0:01:48]} 30. Rd5 {[%clk 0:00:07]}  Rfe7 {[%clk 0:01:48]} 31. Kg2 {[%clk 0:00:07]}  Bc7 {[%clk 0:01:45]} 32. Rg5+ {[%clk 0:00:03]}  Kh8 {[%clk 0:01:45]} 33. a4 {[%clk 0:00:03]}  Bxf4 {[%clk 0:01:41]} 34. exf4 {[%clk 0:00:03]}  Nxb4 {[%clk 0:01:41]} 35. Rb2 {[%clk 0:00:04]}  Re2+ {[%clk 0:01:41]} 36. Rxe2 {[%clk 0:00:04]}  Rxe2+ {[%clk 0:01:41]} 37. Kf3 {[%clk 0:00:04]}  Rxh2 {[%clk 0:01:41]} 38. Rc5 {[%clk 0:00:05]}  Nc6 {[%clk 0:01:41]} 39. Rd5 {[%clk 0:00:04]}  Ra2 {[%clk 0:01:41]} 40. Rd7 {[%clk 0:00:04]}  Rxa4 {[%clk 0:01:40]} 41. Rxb7 {[%clk 0:00:04]}  Rb4 {[%clk 0:01:38]} 0-1


[Site "https://www.chess.com"]

[Event "Titled Tuesday Blitz April 18 Early 2023"]
[White "AyMitecK"]
[Black "Larina, Maria"]
[BlackFideId "24113182"]
[WhiteElo "2574"]
[BlackElo "1848"]
[Result "1-0"]
[Round "01"]
[TimeControl "180+2"]
[Date "2023.04.18"]
[WhiteClock "0:01:36"]
[BlackClock "0:00:21"]

1. e4 {[%clk 0:02:59]}  c6 {[%clk 0:02:59]} 2. d4 {[%clk 0:02:58]}  d5 {[%clk 0:03:00]} 3. f3 {[%clk 0:02:59]}  Qb6 {[%clk 0:02:59]} 4. Nc3 {[%clk 0:02:59]}  dxe4 {[%clk 0:02:59]} 5. fxe4 {[%clk 0:02:59]}  e5 {[%clk 0:03:00]} 6. dxe5 {[%clk 0:03:00]}  Be6 {[%clk 0:02:59]} 7. Nf3 {[%clk 0:03:00]}  Nd7 {[%clk 0:02:59]} 8. Ng5 {[%clk 0:03:00]}  O-O-O {[%clk 0:02:46]} 9. Nxe6 {[%clk 0:03:00]}  fxe6 {[%clk 0:02:45]} 10. Bc4 {[%clk 0:03:01]}  Kb8 {[%clk 0:02:18]} 11. Bxe6 {[%clk 0:02:57]}  Nc5 {[%clk 0:02:13]} 12. Qg4 {[%clk 0:02:44]}  h5 {[%clk 0:02:01]} 13. Qh3 {[%clk 0:02:39]}  Re8 {[%clk 0:01:53]} 14. Bb3 {[%clk 0:02:22]}  Nxb3 {[%clk 0:01:34]} 15. axb3 {[%clk 0:02:23]}  Bb4 {[%clk 0:01:17]} 16. Be3 {[%clk 0:02:15]}  c5 {[%clk 0:01:12]} 17. O-O {[%clk 0:02:08]}  Bxc3 {[%clk 0:01:00]} 18. bxc3 {[%clk 0:02:02]}  Qc6 {[%clk 0:00:49]} 19. b4 {[%clk 0:01:55]}  Qxe4 {[%clk 0:00:39]} 20. Bxc5 {[%clk 0:01:53]}  b6 {[%clk 0:00:35]} 21. Bd6+ {[%clk 0:01:52]}  Ka8 {[%clk 0:00:34]} 22. Rxa7+ {[%clk 0:01:37]}  Kxa7 {[%clk 0:00:30]} 23. Qd7+ {[%clk 0:01:38]}  Qb7 {[%clk 0:00:21]} 24. Ra1# {[%clk 0:01:36]} 1-0


[Site "https://www.chess.com"]

[Event "Titled Tuesday Blitz April 18 Early 2023"]
[White "Aanna12"]
[Black "Ezat, Mohamed"]
[BlackFideId "10600906"]
[WhiteElo "2199"]
[BlackElo "2386"]
[Result "0-1"]
[Round "01"]
[TimeControl "180+2"]
[Date "2023.04.18"]
[WhiteClock "0:00:07"]
[BlackClock "0:00:46"]

1. e4 {[%clk 0:03:00]}  c6 {[%clk 0:02:55]} 2. d3 {[%clk 0:02:57]}  d5 {[%clk 0:02:55]} 3. Nd2 {[%clk 0:02:57]}  e5 {[%clk 0:02:55]} 4. Ngf3 {[%clk 0:02:57]}  Bd6 {[%clk 0:02:54]} 5. g3 {[%clk 0:02:57]}  f5 {[%clk 0:02:54]} 6. Bg2 {[%clk 0:02:48]}  Nf6 {[%clk 0:02:53]} 7. O-O {[%clk 0:02:47]}  O-O {[%clk 0:02:54]} 8. Re1 {[%clk 0:02:47]}  Qc7 {[%clk 0:02:48]} 9. exf5 {[%clk 0:02:34]}  Bxf5 {[%clk 0:02:47]} 10. Nf1 {[%clk 0:02:24]}  Na6 {[%clk 0:02:37]} 11. c3 {[%clk 0:02:23]}  Nc5 {[%clk 0:02:24]} 12. d4 {[%clk 0:02:22]}  exd4 {[%clk 0:02:24]} 13. Nxd4 {[%clk 0:02:14]}  Bd7 {[%clk 0:02:24]} 14. Ne3 {[%clk 0:02:03]}  Nfe4 {[%clk 0:02:21]} 15. Rf1 {[%clk 0:02:00]}  Rae8 {[%clk 0:02:15]} 16. b4 {[%clk 0:01:56]}  Ne6 {[%clk 0:02:12]} 17. Qd3 {[%clk 0:01:44]}  Nxd4 {[%clk 0:02:10]} 18. cxd4 {[%clk 0:01:23]}  Bxb4 {[%clk 0:02:09]} 19. Rb1 {[%clk 0:01:20]}  Bd6 {[%clk 0:02:02]} 20. Qb3 {[%clk 0:01:13]}  b5 {[%clk 0:01:02]} 21. Nxd5 {[%clk 0:00:19]}  cxd5 {[%clk 0:01:02]} 22. Qxd5+ {[%clk 0:00:18]}  Be6 {[%clk 0:01:02]} 23. Qxe4 {[%clk 0:00:18]}  Bxa2 {[%clk 0:01:03]} 24. Qd3 {[%clk 0:00:11]}  Bc4 {[%clk 0:00:52]} 25. Qc2 {[%clk 0:00:09]}  Bxf1 {[%clk 0:00:51]} 26. Qxc7 {[%clk 0:00:09]}  Bxc7 {[%clk 0:00:51]} 27. Kxf1 {[%clk 0:00:09]}  Bb6 {[%clk 0:00:47]} 28. Be3 {[%clk 0:00:07]}  Rxe3 {[%clk 0:00:46]} 0-1


[Site "https://www.chess.com"]

[Event "Titled Tuesday Blitz April 18 Early 2023"]
[White "arpita_chess"]
[Black "Ciuffoletti, Paolo"]
[BlackFideId "807630"]
[WhiteElo "2565"]
[BlackElo "2143"]
[Result "1-0"]
[Round "01"]
[TimeControl "180+2"]
[Date "2023.04.18"]
[WhiteClock "0:01:37"]
[BlackClock "0:00:14"]

1. e4 {[%clk 0:02:56]}  c5 {[%clk 0:02:58]} 2. Nf3 {[%clk 0:02:56]}  Nc6 {[%clk 0:02:58]} 3. Bb5 {[%clk 0:02:57]}  e6 {[%clk 0:02:57]} 4. O-O {[%clk 0:02:55]}  Nge7 {[%clk 0:02:56]} 5. d4 {[%clk 0:02:55]}  cxd4 {[%clk 0:02:55]} 6. Nxd4 {[%clk 0:02:56]}  Ng6 {[%clk 0:02:52]} 7. Be3 {[%clk 0:02:53]}  Be7 {[%clk 0:02:46]} 8. c4 {[%clk 0:02:50]}  Nxd4 {[%clk 0:02:34]} 9. Bxd4 {[%clk 0:02:48]}  O-O {[%clk 0:02:29]} 10. Nc3 {[%clk 0:02:47]}  d6 {[%clk 0:02:25]} 11. Ba4 {[%clk 0:02:45]}  b6 {[%clk 0:02:22]} 12. Bc2 {[%clk 0:02:44]}  Bb7 {[%clk 0:02:20]} 13. f4 {[%clk 0:02:44]}  Rc8 {[%clk 0:02:14]} 14. b3 {[%clk 0:02:42]}  Nxf4 {[%clk 0:01:52]} 15. Bxg7 {[%clk 0:02:24]}  Kxg7 {[%clk 0:01:38]} 16. Rxf4 {[%clk 0:02:22]}  Rc5 {[%clk 0:01:23]} 17. Qf3 {[%clk 0:02:16]}  Rg5 {[%clk 0:01:14]} 18. Rf1 {[%clk 0:02:15]}  f5 {[%clk 0:00:50]} 19. Qf2 {[%clk 0:02:05]}  fxe4 {[%clk 0:00:40]} 20. Rf7+ {[%clk 0:02:00]}  Kg8 {[%clk 0:00:27]} 21. Bxe4 {[%clk 0:02:00]}  Bxe4 {[%clk 0:00:25]} 22. Nxe4 {[%clk 0:02:01]}  Rg7 {[%clk 0:00:22]} 23. Rxf8+ {[%clk 0:01:54]}  Qxf8 {[%clk 0:00:20]} 24. Qxf8+ {[%clk 0:01:38]}  Bxf8 {[%clk 0:00:19]} 25. Nf6+ {[%clk 0:01:39]}  Kh8 {[%clk 0:00:18]} 26. Ne8 {[%clk 0:01:39]}  Rg8 {[%clk 0:00:17]} 27. Rf7 {[%clk 0:01:39]}  Bh6 {[%clk 0:00:15]} 28. Nf6 {[%clk 0:01:38]}  Bg7 {[%clk 0:00:14]} 29. Nxg8 {[%clk 0:01:38]}  Kxg8 {[%clk 0:00:13]} 30. Rxa7 {[%clk 0:01:38]}  Bd4+ {[%clk 0:00:13]} 31. Kf1 {[%clk 0:01:38]}  b5 {[%clk 0:00:14]} 32. Ra8+ {[%clk 0:01:37]} 1-0


[Site "https://www.chess.com"]

[Event "Titled Tuesday Blitz April 18 Early 2023"]
[White "Sailer, Mike"]
[Black "Han, Yichen"]
[WhiteFideId "2012901"]
[BlackFideId "1054430"]
[WhiteElo "2109"]
[BlackElo "2342"]
[Result "0-1"]
[Round "01"]
[TimeControl "180+2"]
[Date "2023.04.18"]
[WhiteClock "0:00:08"]
[BlackClock "0:00:24"]

1. d4 {[%clk 0:02:55]}  d5 {[%clk 0:02:58]} 2. Bg5 {[%clk 0:02:55]}  f6 {[%clk 0:02:56]} 3. Bd2 {[%clk 0:02:53]}  Nc6 {[%clk 0:02:54]} 4. c3 {[%clk 0:02:38]}  e5 {[%clk 0:02:53]} 5. dxe5 {[%clk 0:02:37]}  fxe5 {[%clk 0:02:54]} 6. g3 {[%clk 0:02:33]}  Nf6 {[%clk 0:02:52]} 7. Bg2 {[%clk 0:02:33]}  Bc5 {[%clk 0:02:47]} 8. Nh3 {[%clk 0:02:22]}  O-O {[%clk 0:02:44]} 9. O-O {[%clk 0:02:23]}  Bg4 {[%clk 0:02:40]} 10. Bg5 {[%clk 0:02:22]}  e4 {[%clk 0:02:32]} 11. Nf4 {[%clk 0:02:13]}  Ne7 {[%clk 0:02:09]} 12. h3 {[%clk 0:02:09]}  Bf5 {[%clk 0:02:04]} 13. g4 {[%clk 0:02:03]}  Bc8 {[%clk 0:01:59]} 14. Nd2 {[%clk 0:01:57]}  e3 {[%clk 0:01:46]} 15. fxe3 {[%clk 0:01:57]}  Bxe3+ {[%clk 0:01:47]} 16. Kh1 {[%clk 0:01:57]}  c6 {[%clk 0:01:44]} 17. Nb3 {[%clk 0:01:50]}  h6 {[%clk 0:01:33]} 18. Bxf6 {[%clk 0:01:49]}  Rxf6 {[%clk 0:01:34]} 19. Nh5 {[%clk 0:01:42]}  Rxf1+ {[%clk 0:01:30]} 20. Qxf1 {[%clk 0:01:43]}  Be6 {[%clk 0:01:26]} 21. Nd4 {[%clk 0:01:38]}  Bf7 {[%clk 0:01:16]} 22. Ng3 {[%clk 0:01:36]}  Bxd4 {[%clk 0:01:08]} 23. cxd4 {[%clk 0:01:33]}  Qd6 {[%clk 0:01:08]} 24. Nf5 {[%clk 0:01:27]}  Nxf5 {[%clk 0:01:07]} 25. Qxf5 {[%clk 0:01:27]}  Re8 {[%clk 0:01:06]} 26. Rf1 {[%clk 0:01:21]}  Bg6 {[%clk 0:01:05]} 27. Qf2 {[%clk 0:01:17]}  Qe7 {[%clk 0:01:01]} 28. Re1 {[%clk 0:01:10]}  Rf8 {[%clk 0:00:53]} 29. Qg3 {[%clk 0:01:06]}  Be4 {[%clk 0:00:52]} 30. Kg1 {[%clk 0:00:57]}  Bxg2 {[%clk 0:00:47]} 31. Kxg2 {[%clk 0:00:52]}  Qe4+ {[%clk 0:00:46]} 32. Kh2 {[%clk 0:00:47]}  Qxd4 {[%clk 0:00:43]} 33. Kg2 {[%clk 0:00:19]}  Qxb2 {[%clk 0:00:35]} 34. g5 {[%clk 0:00:18]}  hxg5 {[%clk 0:00:33]} 35. Qxg5 {[%clk 0:00:18]}  Qd4 {[%clk 0:00:32]} 36. Rf1 {[%clk 0:00:10]}  Qe4+ {[%clk 0:00:29]} 37. Kg1 {[%clk 0:00:10]}  Qd4+ {[%clk 0:00:24]} 38. Kg2 {[%clk 0:00:10]}  Rxf1 {[%clk 0:00:24]} 39. Kxf1 {[%clk 0:00:11]}  Qf6+ {[%clk 0:00:24]} 40. Qxf6 {[%clk 0:00:06]}  gxf6 {[%clk 0:00:25]} 41. Kf2 {[%clk 0:00:07]}  b5 {[%clk 0:00:24]} 42. Kf3 {[%clk 0:00:08]}  a5 {[%clk 0:00:24]} 0-1


[Site "https://www.chess.com"]